Workbook

Sheet 高天井用LED
A1: 省エネ計算ツール【高天井用ＬＥＤ器具】
A2: 従来の高天井用器具と高天井用ＬＥＤ器具の省エネ試算ができます。目安としてご活用ください。
A3: 従来の高天井用器具 | G3: 高天井用ＬＥＤ器具
A4: ■従来の高天井用器具を選んでください。↓（枠内から選択） | G4: ■おすすめの高天井用ＬＥＤ器具です。
B5: 水銀灯250W 高天井用器具 (LED中角・初期照度補正形と比較) | F5: ※1 | G5: 特長 | H5: ●ﾒﾀﾙﾊﾗｲﾄﾞﾗﾝﾌﾟ、水銀ﾗﾝﾌﾟと同等の明るさで大幅省ｴﾈ
H6: ●LED光源寿命 60,000時間 ※4
H7: ●瞬時点灯・瞬時再点灯
A8: 品 名 | C8: =IF((VLOOKUP(品名,DATA!$A$4:$AK$19,1,0))="▼","",VLOOKUP(品名,DATA!$A$4:$AK$19,1,0)) -> 水銀灯250W 高天井用器具 (LED中角・初期照度補正形と比較) | G8: 品 名 | I8: =IF((VLOOKUP(品名,DATA!$A$4:$AK$19,25,0))="","",VLOOKUP(品名,DATA!$A$4:$AK$19,25,0)) -> 水銀灯250ｸﾗｽ 高天井用LED器具 中角(65度) 初期照度補正形
A10: 形 式 | C10: =IF(VLOOKUP(品名,DATA!$A$4:$AK$19,2,0)="","",VLOOKUP(品名,DATA!$A$4:$AK$19,2,0)) -> MK4011+MSN406+HF250X+2.5MHC25/26 | G10: 形 式 | I10: =IF(VLOOKUP(品名,DATA!$A$4:$AK$19,26,0)="","",VLOOKUP(品名,DATA!$A$4:$AK$19,26,0)) -> MTE11ANN-J14B
A11: 価 格 （税抜） | G11: 価 格 （税抜） | I11: <積算見積価格>※2 | K11: <購入価格で試算>※3
C13: － | I13: =IF((VLOOKUP(品名,DATA!$A$4:$AK$19,29,0))="",0,VLOOKUP(品名,DATA!$A$4:$AK$19,29,0)) -> 109400 | J13: 円 | K13: 0 | L13: 円
A16: ランプ光束 ※5 | C16: =IF((VLOOKUP(品名,DATA!$A$4:$AK$19,14,0))="","",VLOOKUP(品名,DATA!$A$4:$AK$19,14,0)) -> 12800 | D16: lm | E16: =IF((VLOOKUP(品名,DATA!$A$4:$AK$19,6,0))="","",VLOOKUP(品名,DATA!$A$4:$AK$19,6,0)) -> (HF250X) | G16: 定格光束 ※6 | I16: =IF((VLOOKUP(品名,DATA!$A$4:$AK$19,34,0))="","",VLOOKUP(品名,DATA!$A$4:$AK$19,34,0)) -> 11000 | J16: lm
A17: 定格消費電力 ※7 | C17: =IF((VLOOKUP(品名,DATA!$A$4:$AK$19,12,0))="","",VLOOKUP(品名,DATA!$A$4:$AK$19,12,0)) -> 260 | D17: W | G17: 定格消費電力 ※7 | I17: =IF((VLOOKUP(品名,DATA!$A$4:$AK$19,31,0))="","",VLOOKUP(品名,DATA!$A$4:$AK$19,31,0)) -> 63 | J17: W | K17: =IF((VLOOKUP(品名,DATA!$A$4:$AK$19,37,0))="","",VLOOKUP(品名,DATA!$A$4:$AK$19,37,0)) -> 平均消費電力 | L17: =IF((VLOOKUP(品名,DATA!$A$4:$AK$19,32,0))="","",VLOOKUP(品名,DATA!$A$4:$AK$19,32,0)) -> 57
A18: 消費効率 | C18: =IF(C16="","",ROUND(C16/C17,1)) -> 49.2 | D18: lm/W | G18: 消費効率 | I18: =IF(I16="","",ROUNDDOWN(I16/I17,1)) -> 174.6 | J18: lm/W | K18: 固有エネルギー消費効率
A19: ランプ寿命 | C19: =IF((VLOOKUP(品名,DATA!$A$4:$AK$19,13,0))="","",VLOOKUP(品名,DATA!$A$4:$AK$19,13,0)) -> 12000 | D19: 時間 | G19: ＬＥＤ光源寿命 | I19: =IF((VLOOKUP(品名,DATA!$A$4:$AK$19,33,0))="","",VLOOKUP(品名,DATA!$A$4:$AK$19,33,0)) -> 60000 | J19: 時間
A20: 質量 | C20: =IF((VLOOKUP(品名,DATA!$A$4:$AK$19,21,0))="","",VLOOKUP(品名,DATA!$A$4:$AK$19,21,0)) -> 器具：1.16kg、ﾗﾝﾌﾟ：0.2kg、安定器：3.1kg、合計：4.46kg | G20: 質量 | I20: =IF((VLOOKUP(品名,DATA!$A$4:$AK$19,36,0))="","",VLOOKUP(品名,DATA!$A$4:$AK$19,36,0)) -> 3.2 | J20: kg
A21: 外観 | G21: 外観
A25: ■試算条件を入力ください。（枠内に入力ください） | G25: ■試算条件を入力ください。（枠内に入力ください）
A27: 使用台数 | C27: 1 | D27: 台 | G27: 使用台数 | I27: 1 | J27: 台
A29: 電力料金 ※8 | C29: 28 | D29: 円/kWh | E29: ＊任意に変更ができます。 | G29: 電力料金 ※8 | I29: =C29 -> 28 | J29: 円/kWh
A31: 1日の点灯時間 | C31: 10 | D31: 時間/日 | G31: 1日の点灯時間 | I31: =C31 -> 10 | J31: 時間/日
A33: 年間使用日数 | C33: 300 | D33: 日/年 | G33: 年間の使用日数 | I33: =C33 -> 300 | J33: 日/年
A35: 年間点灯時間 | C35: =C31*C33 -> 3000 | D35: 時間/年 ※9 | G35: 年間点灯時間 | I35: =I31*I33 -> 3000 | J35: 時間/年
A37: 年間消費電力 | C37: =IF(C17="",0,C17*C35*C27/1000) -> 780 | D37: kWh/年 | G37: 年間消費電力 | I37: =IF(I17="",0,IF(L17="",I17*I27*I35/1000,L17*I27*I35/1000)) -> 171 | J37: kWh/年
A39: ランニングコスト | C39: =C37*C29 -> 21840 | D39: 円/年 | G39: ランニングコスト | I39: =I37*I29 -> 4788 | J39: 円/年 | K39: =IF(OR(C39=0,I39=0),"-",IF(((I39-C39)/C39)<0,ROUNDDOWN((I39-C39)/C39,2),ROUNDUP((I39-C39)/C39,2))) -> -0.78 | L39: =IF(OR(K39="-",K39=0),"",IF(K39<0,"低減","アップ")) -> 低減
A40: （年間電力費）
G41: イニシャルコスト | I41: =IF(I13="",0,IF(K13=0,I13*I27,K13*I27)) -> 109400 | J41: 円 | L41: =IF(OR(K41="-",K41=0),"",IF(K41<0,"低減","アップ")) -> 
I42: =IF(I13=0,"",IF(K13=0,"●積算見積価格の試算です！","●購入価格の試算です！")) -> ●積算見積価格の試算です！
A46: ■試算結果
A47: 【結果１】 ランニングコスト比較（年間電力費）
C48: ランニングコスト | E48: 比較
B49: 従来 | C49: =IF(C39="",0,ROUND(C39,0)) -> 21840 | D49: 円/年 | E49: =IF(C49=0,"-",100%) -> 1
B50: ＬＥＤ | C50: =IF(I39="",0,ROUND(I39,0)) -> 4788 | D50: 円/年 | E50: =IF(OR(C49=0,C50=0),"-",IF((C50/C49)<0,ROUNDDOWN((C50/C49),2),ROUNDUP((C50/C49),2))) -> 0.22
B51: 差額 | C51: =C50-C49 -> -17052 | D51: 円/年 | E51: =IF(OR(C49=0,C51=0),"-",IF((C51/C49)<0,ROUNDDOWN((C51/C49),2),ROUNDUP((C51/C49),2))) -> -0.78
B52: =IF(OR(C51=0,C51>0),"","●ＬＥＤなら年間 "&TEXT(-C51,"#,##0")&"円 お得です！") -> ●ＬＥＤなら年間 17,052円 お得です！
A53: 【結果２】 イニシャルコスト比較（設備費用）と設備償却
C54: イニシャルコスト | E54: 比較 | F54: 設備償却
B55: 従来 | C55: =IF(C41="",0,ROUND(C41,0)) -> 0 | D55: 円 | E55: =IF(C55=0,"-",100%) -> - | F55: =IF(OR(C39=0,I39=0,C57=0),"-",IF((C41-I41)/-(C39-I39)<0,"-",ROUNDUP((C41-I41)/-(C39-I39),1))) -> 6.5
B56: ＬＥＤ | C56: =IF(I41="",0,ROUND(I41,0)) -> 109400 | D56: 円 | E56: =IF(OR(C55=0,C56=0),"-",IF((C56/C55)<0,ROUNDDOWN((C56/C55),2),ROUNDUP((C56/C55),2))) -> -
B57: 差額 | C57: =IF(C55="",0,C56-C55) -> 109400 | D57: 円 | E57: =IF(OR(C55=0,C57=0),"-",IF((C57/C55)<0,ROUNDDOWN((C57/C55),2),ROUNDUP((C57/C55),2))) -> - | G57: ＊設備償却=イニシャルコスト差額÷ランニングコスト差額
A58: ＊イニシャルコストの償却期間は、従来の照明器具費とＬＥＤ照明器具費の差額を、ランニングコストの差額で割り試算しています。 試算条件によっては、
A59: 「一般社団法人日本照明工業会 ガイド111」による適正交換時期や耐用の限度を超える場合がありますが、寿命を保証するものではありません。
A61: ※1 従来の高天井器具を選択すると、おすすめのLED照明器具が表示されますが、明るさを保証するものではありません。
A62: 明るさ（照度 lx：ルクス）は、照明設計条件（光束、配光特性、設置条件、天井・壁・床の反射率、汚れ等）により異なりますので、照明計算によります。
A63: ※2 積算見積価格は、事業者様向けの積算見積価格であり、一般消費者向けの販売価格ではありません。
A64: ※3 購入価格を入力すると購入価格での試算となります。『クリア』ボタンでリセットされます。
A65: ※4 LED光源寿命はLED単体で定められた温度設計に基づいて算出した設計寿命であり、使用環境・使用方法により寿命は異なります。 また、LEDモジュール
A66: としての寿命であり、照明器具としての寿命は他の光源を使用した場合と同様の8～10年です。 LEDモジュールのみの交換はできません。
A67: ※5 ランプ光束はランプ単体の全光束を示します。 ランプを装着した高天井器具から放出される光の量（lm：ルーメン）ではありません。
A68: ※6 定格光束はLED照明器具から放出される光の量（lm：ルーメン）を示します。 明るさ（照度 lx：ルクス）の比較は、照明計算によります。
A69: ※7 定格消費電力、平均消費電力は入力電圧200V時の値です。 照度補正形は平均消費電力（照度補正による電力変化の平均値）で試算しています。
A70: ※8 年間電力費は電力料金単価28円/kWh（税抜）[一般社団法人日本照明工業会 ガイドA139-2023]を初期値として計算しています。
A71: ※9 年間点灯時間は3,000時間を初期値としています。[一般社団法人日本照明工業会 ガイドA139-2023 「事務所・工場（一般）・店舗」]
L74: 2023年 4月版
C75: =VLOOKUP(品名,DATA!$A$4:$AK$19,3,0) -> MK4011_HF250X_NJ | I75: =VLOOKUP(品名,DATA!$A$4:$AK$19,27,0) -> MTE11ANNJ14B

Sheet DATA (hidden)
A1: 【DATE】
A2: 従来器具 | Y2: 提案ＬＥＤ器具
A3: 従来品名 | B3: 表示形式 | C3: 従来形式 | D3: 従来画像 | E3: 表示器具 | F3: 表示ランプ | G3: 表示安定器 | H3: 従来器具 | I3: 従来ランプ | J3: 従来安定器 | K3: 合計価格 | L3: 従来電力 | M3: 定格寿命 | N3: ランプ光束 | O3: 消費効率 | P3: 質量合計 | Q3: 反射笠 | R3: ホルダ | S3: ランプ | T3: 点灯装置 | U3: 質量表示 | V3: 照度補正の場合 | W3: 交換費@ | Y3: 提案ＬＥＤ | Z3: 提案表示形式 | AA3: 提案形式 | AB3: 提案画像 | AC3: 器具 | AE3: 消費電力 | AF3: 平均電力 | AG3: 定格寿命 | AH3: 定格光束 | AI3: 消費効率 | AJ3: 質量 | AK3: 照度補正の場合
A4: ▼ | C4: KUHAKU | AA4: KUHAKULED | AL4: ※消費効率の小数第１位以下切捨て（2015/7)
A5: 水銀灯250W 高天井用器具 (LED中角・初期照度補正形と比較) | B5: MK4011+MSN406+HF250X+2.5MHC25/26 | C5: MK4011_HF250X_NJ | E5: MK4011+MSN406 | F5: (HF250X) | G5: 2.5MHC25/26 | H5: 8500 | I5: 4600 | J5: 15400 | K5: =SUM(H5:J5) -> 28500 | L5: 260 | M5: 12000 | N5: 12800 | O5: =N5/L5 -> 49.23076923 | P5: =SUM(Q5:T5) -> 4.46 | Q5: 0.46 | R5: 0.7 | S5: 0.2 | T5: 3.1 | U5: 器具：1.16kg、ﾗﾝﾌﾟ：0.2kg、安定器：3.1kg、合計：4.46kg | W5: 1100 | Y5: 水銀灯250ｸﾗｽ 高天井用LED器具 中角(65度) 初期照度補正形 | Z5: MTE11ANN-J14B | AA5: MTE11ANNJ14B | AC5: 109400 | AE5: 63 | AF5: 57 | AG5: 60000 | AH5: 11000 | AI5: =ROUNDDOWN(AH5/AE5,1) -> 174.6 | AJ5: 3.2 | AK5: 平均消費電力
A6: 水銀灯250W 高天井用器具 (LED広角・初期照度補正形と比較) | B6: MK4011+MSN406+HF250X+2.5MHC25/26 | C6: MK4011_HF250X_MJ | E6: MK4011+MSN406 | F6: (HF250X) | G6: 2.5MHC25/26 | H6: 8500 | I6: 4600 | J6: 15400 | K6: 28500 | L6: 260 | M6: 12000 | N6: 12800 | O6: 49.23076923 | P6: =SUM(Q6:T6) -> 4.46 | Q6: 0.46 | R6: 0.7 | S6: 0.2 | T6: 3.1 | U6: 器具：1.16kg、ﾗﾝﾌﾟ：0.2kg、安定器：3.1kg、合計：4.46kg | W6: 1100 | Y6: 水銀灯250ｸﾗｽ 高天井用LED器具 広角(90度) 初期照度補正形 | Z6: MTE11AMN-J14B | AA6: MTE11AMNJ14B | AC6: 109400 | AE6: 63 | AF6: 57 | AG6: 60000 | AH6: 11000 | AI6: =ROUNDDOWN(AH6/AE6,1) -> 174.6 | AJ6: 3.2 | AK6: 平均消費電力
A7: 水銀灯250W 高天井用器具 (LED特広角・初期照度補正形と比較) | B7: MK4011+MSN406+HF250X+2.5MHC25/26 | C7: MK4011_HF250X_WJ | E7: MK4011+MSN406 | F7: (HF250X) | G7: 2.5MHC25/26 | H7: 8500 | I7: 4600 | J7: 15400 | K7: 28500 | L7: 260 | M7: 12000 | N7: 12800 | O7: 49.23076923 | P7: 4.46 | Q7: 0.46 | R7: 0.7 | S7: 0.2 | T7: 3.1 | U7: 器具：1.16kg、ﾗﾝﾌﾟ：0.2kg、安定器：3.1kg、合計：4.46kg | W7: 1100 | Y7: 水銀灯250ｸﾗｽ 高天井用LED器具 特広角(120度) 初期照度補正形 | Z7: MTE11AWN-J14B | AA7: MTE11AWNJ14B | AC7: 109400 | AE7: 63 | AF7: 57 | AG7: 60000 | AH7: 12000 | AI7: 190.4 | AJ7: 3 | AK7: 平均消費電力
A8: 水銀灯400W 高天井用器具 (LED中角・初期照度補正形と比較) | B8: MK4011+MSN406+HF400X+4MHC25/26 | C8: MK4011_HF400X_NJ | E8: MK4011+MSN406 | F8: (HF400X) | G8: 4MHC25/26 | H8: 8500 | I8: 5850 | J8: 20600 | K8: 34950 | L8: 415 | M8: 12000 | N8: 22000 | O8: 53.01204819 | P8: =SUM(Q8:T8) -> 5.43 | Q8: 0.46 | R8: 0.7 | S8: 0.27 | T8: 4 | U8: 器具：1.16kg、ﾗﾝﾌﾟ：0.27kg、安定器：4.0kg、合計：5.43kg | W8: 1100 | Y8: 水銀灯400ｸﾗｽ 高天井用LED器具 中角(65度) 初期照度補正形 | Z8: MTE17ANN-J14B | AA8: MTE11ANNJ14B | AC8: 151800 | AE8: 94.4 | AF8: 84.8 | AG8: 60000 | AH8: 17000 | AI8: 180 | AJ8: 3.2 | AK8: 平均消費電力
A9: 水銀灯400W 高天井用器具 (LED広角・初期照度補正形と比較) | B9: MK4011+MSN406+HF400X+4MHC25/26 | C9: MK4011_HF400X_MJ | E9: MK4011+MSN406 | F9: (HF400X) | G9: 4MHC25/26 | H9: 8500 | I9: 5850 | J9: 20600 | K9: 34950 | L9: 415 | M9: 12000 | N9: 22000 | O9: 53.01204819 | P9: 5.43 | Q9: 0.46 | R9: 0.7 | S9: 0.27 | T9: 4 | U9: 器具：1.16kg、ﾗﾝﾌﾟ：0.27kg、安定器：4.0kg、合計：5.43kg | W9: 1100 | Y9: 水銀灯400ｸﾗｽ 高天井用LED器具 広角(90度) 初期照度補正形 | Z9: MTE17AMN-J14B | AA9: MTE11AMNJ14B | AC9: 151800 | AE9: 94.4 | AF9: 84.8 | AG9: 60000 | AH9: 17000 | AI9: 180 | AJ9: 3.2 | AK9: 平均消費電力
A10: 水銀灯400W 高天井用器具 (LED特広角・初期照度補正形と比較) | B10: MK4011+MSN406+HF400X+4MHC25/26 | C10: MK4011_HF400X_WJ | E10: MK4011+MSN406 | F10: (HF400X) | G10: 4MHC25/26 | H10: 8500 | I10: 5850 | J10: 20600 | K10: 34950 | L10: 415 | M10: 12000 | N10: 22000 | O10: 53.01204819 | P10: 5.43 | Q10: 0.46 | R10: 0.7 | S10: 0.27 | T10: 4 | U10: 器具：1.16kg、ﾗﾝﾌﾟ：0.27kg、安定器：4.0kg、合計：5.43kg | W10: 1100 | Y10: 水銀灯400ｸﾗｽ 高天井用LED器具 特広角(120度) 初期照度補正形 | Z10: MTE17AWN-J14B | AA10: MTE11AWNJ14B | AC10: 151800 | AE10: 94.4 | AF10: 84.8 | AG10: 60000 | AH10: 18000 | AI10: 190.6 | AJ10: 3 | AK10: 平均消費電力
A11: ﾒﾀﾙﾊﾗｲﾄﾞﾗﾝﾌﾟ400W 高天井用器具 (LED中角・初期照度補正形と比較) | B11: MK4011+MSN406+MF400L-B/BU-P+4MHC25/26 | C11: MK4011_MF400LB_NJ | E11: MK4011+MSN406 | F11: (MF400L-B/BU-P) | G11: 4MHC25/26 | H11: 8500 | I11: 13300 | J11: 20600 | K11: 42400 | L11: 415 | M11: 12000 | N11: 42000 | O11: 101.2048193 | P11: =SUM(Q11:T11) -> 5.43 | Q11: 0.46 | R11: 0.7 | S11: 0.27 | T11: 4 | U11: 器具：1.16kg、ﾗﾝﾌﾟ：0.27kg、安定器：4.0kg、合計：5.43kg | W11: 1100 | Y11: ﾒﾀﾙﾊﾗｲﾄﾞﾗﾝﾌﾟ400ｸﾗｽ 高天井用LED器具 中角(65度) 初期照度補正形 | Z11: MTE22ANN-J14B | AA11: MTE11ANNJ14B | AC11: 196700 | AE11: 119.1 | AF11: 107 | AG11: 60000 | AH11: 21000 | AI11: 176.3 | AJ11: 3.4 | AK11: 平均消費電力
A12: ﾒﾀﾙﾊﾗｲﾄﾞﾗﾝﾌﾟ400W 高天井用器具 (LED広角・初期照度補正形と比較) | B12: MK4011+MSN406+MF400L-B/BU-P+4MHC25/26 | C12: MK4011_MF400LB_MJ | E12: MK4011+MSN406 | F12: (MF400L-B/BU-P) | G12: 4MHC25/26 | H12: 8500 | I12: 13300 | J12: 20600 | K12: 42400 | L12: 415 | M12: 12000 | N12: 42000 | O12: 101.2048193 | P12: 5.43 | Q12: 0.46 | R12: 0.7 | S12: 0.27 | T12: 4 | U12: 器具：1.16kg、ﾗﾝﾌﾟ：0.27kg、安定器：4.0kg、合計：5.43kg | W12: 1100 | Y12: ﾒﾀﾙﾊﾗｲﾄﾞﾗﾝﾌﾟ400ｸﾗｽ 高天井用LED器具 特広角(120度) 初期照度補正形 | Z12: MTE22AMN-J14B | AA12: MTE11AMNJ14B | AC12: 196700 | AE12: 119.1 | AF12: 107 | AG12: 60000 | AH12: 21000 | AI12: 176.3 | AJ12: 3.4 | AK12: 平均消費電力
A13: ﾒﾀﾙﾊﾗｲﾄﾞﾗﾝﾌﾟ400W 高天井用器具 (LED特広角・初期照度補正形と比較) | B13: MK4011+MSN406+MF400L-B/BU-P+4MHC25/26 | C13: MK4011_MF400LB_MJ | E13: MK4011+MSN406 | F13: (MF400L-B/BU-P) | G13: 4MHC25/26 | H13: 8500 | I13: 13300 | J13: 20600 | K13: =SUM(H13:J13) -> 42400 | L13: 415 | M13: 12000 | N13: 42000 | O13: =N13/L13 -> 101.2048193 | P13: =SUM(Q13:T13) -> 5.43 | Q13: 0.46 | R13: 0.7 | S13: 0.27 | T13: 4 | U13: 器具：1.16kg、ﾗﾝﾌﾟ：0.27kg、安定器：4.0kg、合計：5.43kg | W13: 1100 | Y13: ﾒﾀﾙﾊﾗｲﾄﾞﾗﾝﾌﾟ400ｸﾗｽ 高天井用LED器具 広角(90度) 初期照度補正形 | Z13: MTE22AWN-J14B | AA13: MTE11AWNJ14B | AC13: 196700 | AE13: 119.1 | AF13: 107 | AG13: 60000 | AH13: 22500 | AI13: =ROUNDDOWN(AH13/AE13,1) -> 188.9 | AJ13: 3.2 | AK13: 平均消費電力
A14: 水銀灯700W 高天井用器具 (LED中角・初期照度補正形と比較) | B14: MK10011+MSN406+HF700X+7MHC25/26 | C14: MK10011_HF700X_NJ | E14: MK10011+MSN406 | F14: (HF700X) | G14: 7MHC25/26 | H14: 13400 | I14: 10300 | J14: 32400 | K14: 56100 | L14: 745 | M14: 12000 | N14: 41000 | O14: 55.03355705 | P14: =SUM(Q14:T14) -> 9.06 | Q14: 0.82 | R14: 0.7 | S14: 0.44 | T14: 7.1 | U14: 器具：1.52kg、ﾗﾝﾌﾟ：0.44kg、安定器：7.1kg、合計：9.06kg | W14: 1100 | Y14: 水銀灯700ｸﾗｽ 高天井用LED器具 中角(65度) 初期照度補正形 | Z14: MTE28BNN-J24A | AA14: MTE28BNNJ24A | AC14: 218500 | AE14: 145 | AF14: 130.3 | AG14: 60000 | AH14: 26500 | AI14: 182.7 | AJ14: 6.6 | AK14: 平均消費電力
A15: 水銀灯700W 高天井用器具 (LED広角・初期照度補正形と比較) | B15: MK10011+MSN406+HF700X+7MHC25/26 | C15: MK10011_HF700X_MJ | E15: MK10011+MSN406 | F15: (HF700X) | G15: 7MHC25/26 | H15: 13400 | I15: 10300 | J15: 32400 | K15: 56100 | L15: 745 | M15: 12000 | N15: 41000 | O15: 55.03355705 | P15: 9.06 | Q15: 0.82 | R15: 0.7 | S15: 0.44 | T15: 7.1 | U15: 器具：1.52kg、ﾗﾝﾌﾟ：0.44kg、安定器：7.1kg、合計：9.06kg | W15: 1100 | Y15: 水銀灯700ｸﾗｽ 高天井用LED器具 広角(90度) 初期照度補正形 | Z15: MTE28BMN-J24A | AA15: MTE28BMNJ24A | AC15: 218500 | AE15: 145 | AF15: 130.3 | AG15: 60000 | AH15: 26500 | AI15: 182.7 | AJ15: 6.6 | AK15: 平均消費電力
A16: ﾒﾀﾙﾊﾗｲﾄﾞﾗﾝﾌﾟ700W 高天井用器具 (LED中角・初期照度補正形と比較) | B16: MK10011+MSN406+MF700L-C/BU+7MHC25/26 | C16: MK10011_MF700L_NJ | E16: MK10011+MSN406 | F16: (MF700L-C/BU) | G16: 7MHC25/26 | H16: 13400 | I16: 21900 | J16: 32400 | K16: 67700 | L16: 745 | M16: 12000 | N16: 70000 | O16: 93.95973154 | P16: =SUM(Q16:T16) -> 9.1 | Q16: 0.82 | R16: 0.7 | S16: 0.48 | T16: 7.1 | U16: 器具：1.52kg、ﾗﾝﾌﾟ：0.48kg、安定器：7.1kg、合計：9.1kg | W16: 1100 | Y16: ﾒﾀﾙﾊﾗｲﾄﾞﾗﾝﾌﾟ700ｸﾗｽ 高天井用LED器具 中角(65度) 初期照度補正形 | Z16: MTE34BNN-J24A | AA16: MTE28BNNJ24A | AC16: 258800 | AE16: 185.5 | AF16: 166.7 | AG16: 60000 | AH16: 33700 | AI16: 181.6 | AJ16: 6.9 | AK16: 平均消費電力
A17: ﾒﾀﾙﾊﾗｲﾄﾞﾗﾝﾌﾟ700W 高天井用器具 (LED広角・初期照度補正形と比較) | B17: MK10011+MSN406+MF700L-C/BU+7MHC25/26 | C17: MK10011_MF700L_MJ | E17: MK10011+MSN406 | F17: (MF700L-C/BU) | G17: 7MHC25/26 | H17: 13400 | I17: 21900 | J17: 32400 | K17: 67700 | L17: 745 | M17: 12000 | N17: 70000 | O17: 93.95973154 | P17: 9.1 | Q17: 0.82 | R17: 0.7 | S17: 0.48 | T17: 7.1 | U17: 器具：1.52kg、ﾗﾝﾌﾟ：0.48kg、安定器：7.1kg、合計：9.1kg | W17: 1100 | Y17: ﾒﾀﾙﾊﾗｲﾄﾞﾗﾝﾌﾟ700ｸﾗｽ 高天井用LED器具 広角(90度) 初期照度補正形 | Z17: MTE34BMN-J24A | AA17: MTE28BMNJ24A | AC17: 258800 | AE17: 185.5 | AF17: 166.7 | AG17: 60000 | AH17: 33700 | AI17: 181.6 | AJ17: 6.9 | AK17: 平均消費電力
A18: ﾒﾀﾙﾊﾗｲﾄﾞﾗﾝﾌﾟ1000W 高天井用器具 (LED中角・初期照度補正形と比較) | B18: MK10011+MSN406+MF1000L-C/BU+10MHC25/26 | C18: MK10011_MF1000LC_NJ | E18: MK10011+MSN406 | F18: (MF1000L-C/BU) | G18: 10MHC25/26 | H18: 13400 | I18: 28600 | J18: 39500 | K18: 81500 | L18: 1050 | M18: 12000 | N18: 96000 | O18: 91.42857143 | P18: =SUM(Q18:T18) -> 11.01 | Q18: 0.82 | R18: 0.7 | S18: 0.59 | T18: 8.9 | U18: 器具：1.52kg、ﾗﾝﾌﾟ：0.59kg、安定器：8.9kg、合計：11.01kg | W18: 1100 | Y18: ﾒﾀﾙﾊﾗｲﾄﾞﾗﾝﾌﾟ1000ｸﾗｽ 高天井用LED器具 中角(65度) 初期照度補正形 | Z18: MTE44BNN-J24A | AA18: MTE44BNNJ24A | AC18: 384100 | AE18: 238.5 | AF18: 214.5 | AG18: 60000 | AH18: 42500 | AI18: 178.1 | AJ18: 6.9 | AK18: 平均消費電力
A19: ﾒﾀﾙﾊﾗｲﾄﾞﾗﾝﾌﾟ1000W 高天井用器具 (LED広角・初期照度補正形と比較) | B19: MK10011+MSN406+MF1000L-C/BU+10MHC25/26 | C19: MK10011_MF1000LC_MJ | E19: MK10011+MSN406 | F19: (MF1000L-C/BU) | G19: 10MHC25/26 | H19: 13400 | I19: 28600 | J19: 39500 | K19: 81500 | L19: 1050 | M19: 12000 | N19: 96000 | O19: 91.42857143 | P19: 11.01 | Q19: 0.82 | R19: 0.7 | S19: 0.59 | T19: 8.9 | U19: 器具：1.52kg、ﾗﾝﾌﾟ：0.59kg、安定器：8.9kg、合計：11.01kg | W19: 1100 | Y19: ﾒﾀﾙﾊﾗｲﾄﾞﾗﾝﾌﾟ1000ｸﾗｽ 高天井用LED器具 広角(90度) 初期照度補正形 | Z19: MTE44BMN-J24A | AA19: MTE44BMNJ24A | AC19: 384100 | AE19: 238.5 | AF19: 214.5 | AG19: 60000 | AH19: 42500 | AI19: 178.1 | AJ19: 6.9 | AK19: 平均消費電力
O21: ＜質量＞
A22: ☆2019年4月版：MF700クラスを追加水銀700・1000クラス価格改定 | O22: MK4011 | P22: 0.46
O23: MK10011 | P23: 0.82
O24: MSN406 | P24: 0.7
O25: 2.5MHC25 | P25: 3.1
O26: 4MHC25 | P26: 4
O27: 7MHC25 | P27: 7.1
O28: 10MHC25 | P28: 8.9
O29: HF250X | P29: 0.2
O30: HF400X | P30: 0.27
O31: HF700X | P31: 0.44
O32: HF1000X | P32: 0.56
O33: MF400L-B | P33: 0.27
O34: MF1000L-C | P34: 0.59

Sheet ｸﾞﾗﾌ (hidden)
A3: 使用年数 | B3: 0 | C3: 1 | D3: 2 | E3: 3 | F3: 4 | G3: 5 | H3: 6 | I3: 7 | J3: 8 | K3: 9 | L3: 10 | M3: 11 | N3: 12 | O3: 13 | P3: 14 | Q3: 15
A4: 従来 | B4: 0 | C4: =IF(高天井用LED!$C39="","",B4+高天井用LED!$C39/10000) -> 2.184 | D4: =IF(高天井用LED!$C39="","",C4+高天井用LED!$C39/10000) -> 4.368 | E4: =IF(高天井用LED!$C39="","",D4+高天井用LED!$C39/10000) -> 6.552 | F4: =IF(高天井用LED!$C39="","",E4+高天井用LED!$C39/10000) -> 8.736 | G4: =IF(高天井用LED!$C39="","",F4+高天井用LED!$C39/10000) -> 10.92 | H4: =IF(高天井用LED!$C39="","",G4+高天井用LED!$C39/10000) -> 13.104 | I4: =IF(高天井用LED!$C39="","",H4+高天井用LED!$C39/10000) -> 15.288 | J4: =IF(高天井用LED!$C39="","",I4+高天井用LED!$C39/10000) -> 17.472 | K4: =IF(高天井用LED!$C39="","",J4+高天井用LED!$C39/10000) -> 19.656 | L4: =IF(高天井用LED!$C39="","",K4+高天井用LED!$C39/10000) -> 21.84 | M4: =IF(高天井用LED!$C39="","",L4+高天井用LED!$C39/10000) -> 24.024 | N4: =IF(高天井用LED!$C39="","",M4+高天井用LED!$C39/10000) -> 26.208 | O4: =IF(高天井用LED!$C39="","",N4+高天井用LED!$C39/10000) -> 28.392 | P4: =IF(高天井用LED!$C39="","",O4+高天井用LED!$C39/10000) -> 30.576 | Q4: =IF(高天井用LED!$C39="","",P4+高天井用LED!$C39/10000) -> 32.76
A5: LED | B5: =IF(高天井用LED!I41="","",高天井用LED!I41/10000) -> 10.94 | C5: =IF(高天井用LED!$I39="","",B5+高天井用LED!$I39/10000) -> 11.4188 | D5: =IF(高天井用LED!$I39="","",C5+高天井用LED!$I39/10000) -> 11.8976 | E5: =IF(高天井用LED!$I39="","",D5+高天井用LED!$I39/10000) -> 12.3764 | F5: =IF(高天井用LED!$I39="","",E5+高天井用LED!$I39/10000) -> 12.8552 | G5: =IF(高天井用LED!$I39="","",F5+高天井用LED!$I39/10000) -> 13.334 | H5: =IF(高天井用LED!$I39="","",G5+高天井用LED!$I39/10000) -> 13.8128 | I5: =IF(高天井用LED!$I39="","",H5+高天井用LED!$I39/10000) -> 14.2916 | J5: =IF(高天井用LED!$I39="","",I5+高天井用LED!$I39/10000) -> 14.7704 | K5: =IF(高天井用LED!$I39="","",J5+高天井用LED!$I39/10000) -> 15.2492 | L5: =IF(高天井用LED!$I39="","",K5+高天井用LED!$I39/10000) -> 15.728 | M5: =IF(高天井用LED!$I39="","",L5+高天井用LED!$I39/10000) -> 16.2068 | N5: =IF(高天井用LED!$I39="","",M5+高天井用LED!$I39/10000) -> 16.6856 | O5: =IF(高天井用LED!$I39="","",N5+高天井用LED!$I39/10000) -> 17.1644 | P5: =IF(高天井用LED!$I39="","",O5+高天井用LED!$I39/10000) -> 17.6432 | Q5: =IF(高天井用LED!$I39="","",P5+高天井用LED!$I39/10000) -> 18.122
